Workbook

Sheet 様式12号（採択申請書）
A1: （様式第12号）
M2: 番 | P2: 号
J3: 令和 | K3: 7 | L3: 年 | N3: 月 | P3: 日
A5: 広島県森林・山村多面的機能発揮対策
A6: 地域協議会 会長 高木 孝夫 殿
U7: 代表
H8: 活動組織名： | U8: 会長
H9: 代表 | U9: 理事長
U10: 代表理事長
U11: 代表理事組合長
A12: 令和７年度 里山林活性化による多面的機能発揮対策交付金に係る採択申請書 | U12: 代表取締役社長
A14: 里山林活性化による多面的機能発揮対策実施要領（令和７年３月31日６林整森第266号林野庁長官通知）別紙のⅢの第４の４（１）に基づき、下記のとおり里山林活性化による多面的機能発揮対策交付金の採択を申請する。
A16: 記
A18: １．活動組織名（法人の場合は末尾に法人番号を括弧書きで記入）
B19: =J8 -> 0
D21: （法人番号： | L21: ）
A23: ２．協定の対象となる森林の位置
A30: ３．担当者名・電話番号（連絡がとれる担当者及び電話番号を記載）
B31: 担当者名：
B32: 電話番号：
A34: ４．里山林活性化による多面的機能発揮対策交付金
A36: 取組メニュー | E36: 交付単価等 | G36: 森林面積等 | I36: 交付金額 | K36: 都道府県の 支援額 | M36: 市町村の 支援額 | O36: 計
A37: 活動推進費 | I37: 円 | K37: 円 | M37: 円 | O37: 円
E38: 38000 | G38: － | M38: =ROUNDUP(I38/3,0) -> 0 | O38: =SUM(I38:N38) -> 0
A39: 地域活動型 （森林資源活用） | G39: ha | I39: 円 | K39: 円 | M39: 円 | O39: 円
E40: 120000 | I40: =E40*G40 -> 0 | M40: =ROUNDUP(I40/3,0) -> 0 | O40: =I40+K40+M40 -> 0
E41: 116000 | I41: =E41*G41 -> 0 | M41: =ROUNDUP(I41/3,0) -> 0 | O41: =I41+K41+M41 -> 0
E42: 112000 | I42: 0 | M42: 0 | O42: =I42+K42+M42 -> 0
A43: 地域活動型 （竹林資源活用） | G43: ha | I43: 円 | K43: 円 | M43: 円 | O43: 円
E44: 332000 | I44: =E44*G44 -> 0 | M44: =ROUNDUP(I44/3,0) -> 0 | O44: =I44+K44+M44 -> 0
E45: 304000 | I45: 0 | M45: 0 | O45: =I45+K45+M45 -> 0
E46: 276000 | I46: 0 | M46: 0 | O46: =I46+K46+M46 -> 0
A47: 複業実践型 | G47: ha | I47: 円 | K47: 円 | M47: 円 | O47: 円
E48: 191000 | I48: =E48*G48 -> 0 | M48: =ROUNDUP(I48/3,0) -> 0 | O48: =I48+K48+M48 -> 0
E49: 176000 | I49: 0 | M49: 0 | O49: =I49+K49+M49 -> 0
E50: 162000 | I50: 0 | M50: =ROUNDUP(I50/3,0) -> 0 | O50: =I50+K50+M50 -> 0
B51: 安全衛生装備 | E51: 定額 | G51: ha | I51: 円 | K51: 円 | M51: 円 | O51: 円
O52: =I52+K52+M52 -> 0
A53: 小計 | E53: － | G53: ha | I53: 円 | K53: 円 | M53: 円 | O53: 円
I54: =I38+I40+I41+I42+I44+I45+I46+I48+I49+I50+I52 -> 0 | K54: =K38+K40+K41+K42+K44+K45+K46+K48+K49+K50+K52 -> 0 | M54: =M38+M40+M41+M42+M44+M45+M46+M48+M49+M50+M52 -> 0 | O54: =SUM(I54:N54) -> 0
A55: 森林機能強化タイプ | E55: 800 | G55: ｍ | I55: 円 | K55: 円 | M55: 円
I56: =E55*G56 -> 0 | M56: =G56*200 -> 0 | O56: =SUM(I56:N57) -> 0
I57: =E57*G57 -> 0
A58: 関係人口創出・維持タイプ | G58: － | I58: 円 | K58: 円 | M58: 円 | O58: 円
E59: 50000 | M59: =ROUNDUP(I59/3,0) -> 0 | O59: =SUM(I59:N59) -> 0
A60: 資機材等整備 | E60: 1/2 以内 | G60: （購入額）円 | I60: 円 | K60: 円 | M60: 円 | O60: 円
I61: =ROUNDDOWN(G61/2,-3) -> 0 | O61: =SUM(I61:L61) -> 0
A62: 資機材等整備（林内作業車、薪割り機、薪ストーブ又は炭焼き小屋等） | E62: 1/3 以内 | G62: （購入額）円 | I62: 円 | K62: 円 | M62: 円 | O62: 円
I63: =ROUNDDOWN(G63/3,-3) -> 0 | O63: =SUM(I63:L65) -> 0
I64: =ROUNDDOWN(G64/2,-3) -> 0 | O64: =SUM(I64:L64) -> 0
I65: 0 | O65: 0
A66: 計 | E66: － | G66: － | I66: 円 | K66: 円 | M66: 円 | O66: 円
I67: =I54+I56+I59+I61+I63 -> 0 | K67: =K54+K56+K59+K61+K63 -> 0 | M67: =M54+M56+M59+M61+M63 -> 0 | O67: =SUM(I67:N67) -> 0
A68: 間伐等（除伐、枝打ちを含む。）の実施面積 | G68: ha
A70: （注１）機能強化は円/m、関係人口創出・維持は円/年を単位とする。
A71: （注２）交付対象とする面積は0.1ha、延長はm単位を下限とする。
A72: （注３）地域活動型及び複業実践型の交付単価は、上段から活動１年目、活動２年目、活 動３年目の単価とする。【面積は該当年目の交付単価等欄の横に記入ください。】
A73: （注４）資機材等整備の森林面積等欄は、金額を記載すること。なお、資機材等整備のう ち、林内作業車、薪割り機、薪ストーブ又は炭焼き小屋の購入金額若しくは関係人 口創出・維持による活動で使用する移動式の簡易なトイレの賃借料は「1/3以内」と する。
A74: （注５）都道府県の支援額、市町村の支援額及び計については、申請時に都道府県や市町 村から予定額を聞いている場合等に記載すること。
A76: ５．事業費 | D76: =G76+J76+M76 -> 0 | F76: ＝ （ | G76: =O54 -> 0 | I76: + | J76: =O56+O59+G61+G63 -> 0 | L76: ）
A77: （注）事業費は、活動推進費、地域活動型、複業実践型、機能強化、関係人口創出・維 持、資機材等整備の購入額の合計額とする。
A79: ６．月別スケジュール | T79: 矢印とテキストボックスをご活用ください。
A80: 取組内容 | E80: ４月 | F80: ５月 | G80: ６月 | H80: ７月 | I80: ８月 | J80: ９月 | K80: 10月 | L80: 11月 | M80: 12月 | N80: １月 | O80: ２月 | P80: ３月
A81: 活動推進費
A83: 地域活動型 （森林資源活用）
B85: 資源活用の取組
A86: 地域活動型 （竹林資源活用）
B88: 資源活用の取組
A89: 複業実践型
A91: 機能強化
A93: 関係人口創出・維持
A95: 資機材等整備
A98: ７．安全講習等の名称及び内容
A99: 講習の名称 | E99: 講習の内容 | N99: 実施月
P100: 月
P101: 月
A103: ８．関係人口創出・維持の相手先及び活動内容
A104: 【地域外関係者の相手先名】※活動地域外の方10名以上
A105: 地域外参加者 | D105: 住所 | I105: 地域外参加者 | L105: 住所
A106: 1 | I106: 8
A107: 2 | I107: 9
A108: 3 | I108: 10
A109: 4 | I109: 11
A110: 5 | I110: 12
A111: 6 | I111: 13
A112: 7 | I112: 14
A113: 【活動内容】
A115: （注）地域外関係者との現地確認や活動内容の調整を必ず行うこと。
A117: ９．資源活用の取組
A118: 【活動内容】
A120: （注）森林所有者との調整を必ず行うこと。
A122: ＜施行注意＞
A123: 以下の資料を添付すること。 ・活動計画書 ・協定書の写し ・活動組織の規約の写し ・農林水産業・食品産業の作業安全のための規範（個別規範：林業）事業者向け チェックシート ・環境負荷低減のクロスコンプライアンスチェックシート 等を添付するものとする。 記載事項及び添付資料が既に提出している資料の内容と重複する場合には、その 重複する部分については省略できることとし、省略するにあたっては、提出済の資料 の名称その他資料の特定に必要な情報を記載の上、当該資料と同じ旨を記載すること とする。

Sheet 様式12号（採択申請書）記載例
A1: （様式第12号）
K2: 7 | L2: ○保 | M2: 番 | N2: 1 | P2: 号
J3: 令和 | K3: 7 | L3: 年 | M3: 4 | N3: 月 | O3: 1 | P3: 日
A5: 広島県森林・山村多面的機能発揮対策
A6: 地域協議会 会長 高木 孝夫 殿
U7: 代表
H8: 活動組織名： | J8: ○○保全の会 | U8: 会長
H9: 代表 | J9: ○○○○ | U9: 理事長
U10: 代表理事長
U11: 代表理事組合長
A12: 令和７年度 里山林活性化による多面的機能発揮対策交付金に係る採択申請書 | U12: 代表取締役社長
A14: 里山林活性化による多面的機能発揮対策実施要領（令和７年３月31日６林整森第266号林野庁長官通知）別紙のⅢの第４の４（１）に基づき、下記のとおり里山林活性化による多面的機能発揮対策交付金の採択を申請する。
A16: 記
A18: １．活動組織名（法人の場合は末尾に法人番号を括弧書きで記入）
B19: =J8 -> ○○保全の会
D21: （法人番号： | G21: ○○○○○○○ | L21: ）
A23: ２．協定の対象となる森林の位置
B24: ○○県○〇市〇〇町大字○○ ○○番地、○○番地
B25: ○○県○〇市〇〇町大字○○ ○○番地、○○番地
A30: ３．担当者名・電話番号（連絡がとれる担当者及び電話番号を記載）
B31: 担当者名： | D31: ○○ ○○
B32: 電話番号： | D32: 090-0000-0000 （携帯電話等）
A34: ４．里山林活性化による多面的機能発揮対策交付金
A36: 取組メニュー | E36: 交付単価等 | G36: 森林面積等 | I36: 交付金額 | K36: 都道府県の 支援額 | M36: 市町村の 支援額 | O36: 計
A37: 活動推進費 | I37: 円 | K37: 円 | M37: 円 | O37: 円
E38: 38000 | G38: － | I38: 38000 | M38: =ROUNDUP(I38/3,0) -> 12667 | O38: =SUM(I38:N38) -> 50667
A39: 地域活動型 （森林資源活用） | G39: ha | I39: 円 | K39: 円 | M39: 円 | O39: 円
E40: 120000 | G40: 5 | I40: =E40*G40 -> 600000 | M40: =ROUNDUP(I40/3,0) -> 200000 | O40: =I40+K40+M40 -> 800000
E41: 116000 | I41: =E41*G41 -> 0 | M41: =ROUNDUP(I41/3,0) -> 0 | O41: =I41+K41+M41 -> 0
E42: 112000 | I42: 0 | M42: 0 | O42: =I42+K42+M42 -> 0
A43: 地域活動型 （竹林資源活用） | I43: 円 | K43: 円 | M43: 円 | O43: 円
E44: 332000 | G44: 5 | I44: =E44*G44 -> 1660000 | M44: =ROUNDUP(I44/3,0) -> 553334 | O44: =I44+K44+M44 -> 2213334
E45: 304000 | I45: 0 | M45: 0 | O45: =I45+K45+M45 -> 0
E46: 276000 | I46: 0 | M46: 0 | O46: =I46+K46+M46 -> 0
A47: 複業実践型 | G47: ha | I47: 円 | K47: 円 | M47: 円 | O47: 円
E48: 191000 | G48: 1 | I48: =E48*G48 -> 191000 | M48: =ROUNDUP(I48/3,0) -> 63667 | O48: =I48+K48+M48 -> 254667
E49: 176000 | I49: 0 | M49: 0 | O49: =I49+K49+M49 -> 0
E50: 162000 | I50: 0 | M50: =ROUNDUP(I50/3,0) -> 0 | O50: =I50+K50+M50 -> 0
B51: 安全衛生装備 | E51: 定額 | G51: ha | I51: 円 | K51: 円 | M51: 円 | O51: 円
G52: 1 | I52: 50000 | O52: =I52+K52+M52 -> 50000
A53: 小計 | E53: － | G53: ha | I53: 円 | K53: 円 | M53: 円 | O53: 円
G54: 11 | I54: =I38+I40+I41+I42+I44+I45+I46+I48+I49+I50+I52 -> 2539000 | K54: =K38+K40+K41+K42+K44+K45+K46+K48+K49+K50+K52 -> 0 | M54: =M38+M40+M41+M42+M44+M45+M46+M48+M49+M50+M52 -> 829668 | O54: =SUM(I54:N54) -> 3368668
A55: 森林機能強化タイプ | E55: 800 | G55: ｍ | I55: 円 | K55: 円 | M55: 円
G56: 200 | I56: =E55*G56 -> 160000 | M56: =G56*200 -> 40000 | O56: =SUM(I56:N57) -> 200000
I57: =E57*G57 -> 0
A58: 関係人口創出・維持タイプ | G58: － | I58: 円 | K58: 円 | M58: 円 | O58: 円
E59: 50000 | I59: 50000 | M59: =ROUNDUP(I59/3,0) -> 16667 | O59: =SUM(I59:N59) -> 66667
A60: 資機材等整備 | E60: 1/2 以内 | G60: （購入額）円 | I60: 円 | K60: 円 | M60: 円 | O60: 円
G61: 800000 | I61: =ROUNDDOWN(G61/2,-3) -> 400000 | O61: =SUM(I61:L61) -> 400000
A62: 資機材等整備（林内作業車、薪割り機、薪ストーブ又は炭焼き小屋等） | E62: 1/3 以内 | G62: （購入額）円 | I62: 円 | K62: 円 | M62: 円 | O62: 円
G63: 900000 | I63: =ROUNDDOWN(G63/3,-3) -> 300000 | O63: =SUM(I63:L65) -> 300000
I64: =ROUNDDOWN(G64/2,-3) -> 0 | O64: =SUM(I64:L64) -> 0
I65: 0 | O65: 0
A66: 計 | E66: － | G66: － | I66: 円 | K66: 円 | M66: 円 | O66: 円
I67: =I54+I56+I59+I61+I63 -> 3449000 | K67: =K54+K56+K59+K61+K63 -> 0 | M67: =M54+M56+M59+M61+M63 -> 886335 | O67: =SUM(I67:N67) -> 4335335
A68: 間伐等（除伐、枝打ちを含む。）の実施面積 | G68: ha
G69: 11
A70: （注１）機能強化は円/m、関係人口創出・維持は円/年を単位とする。
A71: （注２）交付対象とする面積は0.1ha、延長はm単位を下限とする。
A72: （注３）地域活動型及び複業実践型の交付単価は、上段から活動１年目、活動２年目、活 動３年目の単価とする。【面積は該当年目の交付単価等欄の横に記入ください。】
A73: （注４）資機材等整備の森林面積等欄は、金額を記載すること。なお、資機材等整備のう ち、林内作業車、薪割り機、薪ストーブ又は炭焼き小屋の購入金額若しくは関係人 口創出・維持による活動で使用する移動式の簡易なトイレの賃借料は「1/3以内」と する。
A74: （注５）都道府県の支援額、市町村の支援額及び計については、申請時に都道府県や市町 村から予定額を聞いている場合等に記載すること。
A76: ５．事業費 | D76: =G76+J76+M76 -> 5335335 | F76: ＝ （ | G76: =O54 -> 3368668 | I76: + | J76: =O56+O59+G61+G63 -> 1966667 | L76: ）
A77: （注）事業費は、活動推進費、地域活動型、複業実践型、機能強化、関係人口創出・維 持、資機材等整備の購入額の合計額とする。
A79: ６．月別スケジュール | T79: 矢印とテキストボックスをご活用ください。
A80: 取組内容 | E80: ４月 | F80: ５月 | G80: ６月 | H80: ７月 | I80: ８月 | J80: ９月 | K80: 10月 | L80: 11月 | M80: 12月 | N80: １月 | O80: ２月 | P80: ３月
A81: 活動推進費
A83: 地域活動型 （森林資源活用）
B85: 資源活用の取組
A86: 地域活動型 （竹林資源活用）
B88: 資源活用の取組
A89: 複業実践型
A91: 機能強化
A93: 関係人口創出・維持
A95: 資機材等整備
A98: ７．安全講習等の名称及び内容
A99: 講習の名称 | E99: 講習の内容 | N99: 実施月
A100: 技術講習会 | E100: 講師を招き、間伐方法や伐採木の搬出方法等の森林施業技術に関する研修を実施する。 | N100: 6 | P100: 月
A101: 安全講習会 | E101: 刈払い機、チェンソー等動力機械の使用に関しては、初めて扱う者には事前講習を実施する。 | N101: 6、9 | P101: 月
A103: ８．関係人口創出・維持の相手先及び活動内容
A104: 【地域外関係者の相手先名】※活動地域外の方10名以上
A105: 地域外参加者 | D105: 住所 | I105: 地域外参加者 | L105: 住所
A106: 1 | B106: ○〇 ○○ | D106: ○○市○○町○○555 | I106: 8 | J106: ○〇 ○○ | L106: ○○市○○町○○777
A107: 2 | B107: ○〇 ○○ | D107: ○○市○○町○○556 | I107: 9 | J107: ○〇 ○○ | L107: ○○市○○町○○778
A108: 3 | B108: ○〇 ○○ | D108: ○○市○○町○○557 | I108: 10 | J108: ○〇 ○○ | L108: ○○市○○町○○779
A109: 4 | B109: ○〇 ○○ | D109: ○○市○○町○○558 | I109: 11
A110: 5 | B110: ○〇 ○○ | D110: ○○市○○町○○559 | I110: 12
A111: 6 | B111: ○〇 ○○ | D111: ○○市○○町○○560 | I111: 13
A112: 7 | B112: ○〇 ○○ | D112: ○○市○○町○○561 | I112: 14
A113: 【活動内容】
A114: 急傾斜以外の緩斜面の伐採木の集積作業及び薪割作業
A115: （注）地域外関係者との現地確認や活動内容の調整を必ず行うこと。
A117: ９．資源活用の取組
A118: 【活動内容】
A119: 森林資源活用においては、森林内の大径木を自家用の薪として利用、竹林資源活用においては、タケノコの 生産を行い、市場への出荷を目指す。
A120: （注）森林所有者との調整を必ず行うこと。
A122: ＜施行注意＞
A123: 以下の資料を添付すること。 ・活動計画書 ・協定書の写し ・活動組織の規約の写し ・農林水産業・食品産業の作業安全のための規範（個別規範：林業）事業者向け チェックシート ・環境負荷低減のクロスコンプライアンスチェックシート 等を添付するものとする。 記載事項及び添付資料が既に提出している資料の内容と重複する場合には、その 重複する部分については省略できることとし、省略するにあたっては、提出済の資料 の名称その他資料の特定に必要な情報を記載の上、当該資料と同じ旨を記載すること とする。

Sheet 様式第11号（活動組織）
A1: 活動計画書（活動組織→地域協議会）
A2: （様式第11号）
A12: 活動計画書
A54: ○年○月○日 策定
A55: （○年○月○日 第○回改定） | M55: ←2年目以降の活動組織で、活動計画書の改定を行った場合
M56: 改定日を記載してください。例)令和4年4月20日改定
A57: ○○活動組織
A60: 里山林活性化による多面的機能発揮対策交付金に係る活動計画書
A62: １．活動組織名
A64: ※複業実践型を行う場合：（法人番号 ）
A65: ※複業実践型に取り組む場合は、法人番号も記載すること（番号がない場合は空欄で可）。
A67: ２．活動組織の事務所の所在地
A70: ３．取組の背景
M71: ←活動を行う地区の概要及び取り組むこととなった背景等を記入
A72: ※ 対象となる里山林がある地域の概要、本交付金の活用に至った背景、地元の自治体や自治会・町内会等地域のニーズへの対応、地域の活性化への寄与等について記載。
A74: ４．取組の概要
M75: ←どのような取組を行うかを記入
A77: ５．構成員の概要
A79: ※構成員の人数、年齢層、居住地域（どのような地域から参加しているか）、職種、経歴、所属団体等、構成員の属性について記載。
A81: ６．年度別スケジュール
A82: 区分 | D82: ○年度 | G82: ○年度 | J82: ○年度
A83: １．主たる活動
B84: Ａ－１．地域活動型 | F84: ha | I84: ha | L84: ha
B85: （森林資源活用）
C86: 資源活用の取組
B87: Ａ－２．地域活動型 | F87: ha | I87: ha | L87: ha
B88: （竹林資源活用）
C89: 資源活用の取組
B90: Ｂ．複業実践型 | F90: ha | I90: ha | L90: ha
C92: 資源活用の数値目標 （搬出目標（間伐率等）） | F92: 本/ha | I92: 本/ha | L92: 本/ha
D93: （間伐率 | F93: ％） | G93: （間伐率 | I93: ％） | J93: （間伐率 | L93: ％）
B94: ※間伐等（除伐・枝打ちを含む。）実施面積 | F94: ha | I94: ha | L94: ha
B95: （Ａ＋Ｂ）
A96: ２．従たる活動
B97: Ｃ．機能強化 | F97: m | I97: m | L97: m
F98: ha | I98: ha | L98: ha
B99: Ｄ．関係人口創出・維持
B100: Ｅ．資機材等整備
B101: Ｆ．活動推進費
A102: ※１ Ａ．地域活動型は、年度毎に作業を行う面積と資源活用の実施内容を記載する。
A103: ※２ Ｂ．複業実践型は、年度毎に作業を行う面積と「搬出目標（間伐率）」欄に、各年度ごとの搬出量の 目標を記載する（単位は適宜修正して差し支えない）。
A104: ※３ Ｃ．機能強化の欄に記載する値のうち、延長には、森林調査・見回りを含めない。また、面積は、 併せて行うＡ．地域活動型及びＢ．複業実践型の対象森林の面積の合計とする。
A105: ※４ Ｄ．関係人口創出・維持は、年度毎の実施内容を記載する。
A106: ※５ Ｅ．資機材等整備は、年度毎に整備する資機材を記載する。
A107: ※６ Ｆ．活動推進費は、年度毎の実施内容を記載する。
A109: ７．活動の目標と活動結果を測定するためのモニタリング調査方法
A110: 対象森林 | C110: 区分 | E110: 目標 | I110: モニタリング調査方法
M111: ←タイプごとにどのような森にしたいか（目標）と調査方法を記入
M112: ←タイプごとにどのような森にしたいか（目標）と調査方法を記入
M113: ←タイプごとにどのような森にしたいか（目標）と調査方法を記入
A114: ※１ 目標の設定及びモニタリング調査方法の記載については、別に定めるガイドラインを参考とすること。
A115: ※２ 対象となる森林が複数あり、それぞれの森林で異なるモニタリング調査を行う場合は、それぞれ行を 分けて記載すること。
A117: ８．年度別に実施する安全講習等の名称及び内容
A118: 年度 | C118: 講習の名称 | F118: 講習の内容
B119: 年度 | M119: ←安全講習の名称と内容を記入
B120: 年度 | M120: ←安全講習の名称と内容を記入
B121: 年度 | M121: ←安全講習の名称と内容を記入
A123: ９．安全のために装備する物品及び傷害保険の名称
B124: 安全用具： | M124: ←安全作業を行うために必要な用具、物品を記入 | AH124: ←安全作業を行うために必要な用具、物品を記入
B125: 傷害保険： | M125: ←加入予定の損害保険の名称、種類を記入 | AH125: ←加入予定の損害保険の名称、種類を記入
A128: １０．４年目以降の活動（森林管理）計画
M129: ←4年目以降の管理方法について記入
A131: １１．活動の継続のための取組
A133: ※ 本交付金の交付が終了した後にも活動を継続するために取り組んでいること（活動に参加する者や活動 に必要な経費の確保の取組等）を記載すること。
A135: １２．その他
A136: （１）収入
M137: ←会費を徴収する人数を記入(参加同意書の人数) ←会費の他に林産物で会費としての収入がある場合に記入
A138: ※ 会費、林産物収入など里山林活性化による多面的機能発揮対策交付金以外の収入を記載すること。
A139: （２）委託 | M139: ←計画段階で委託しない場合は記載不要。
A140: ・委託先の名称 | M140: ←委託を行う先の機関名 ←委託先の住所、電話番号 ←委託を行う時期 ←委託を行う内容 ←委託金額（2社以上の見積必要）
A141: ・委託先の連絡先（電話番号等）
A142: ・委託の時期
A143: ・委託の内容（作業を委託する森林の位置（地番、林小班等）、委託する作業の内容及び面積等）
A144: ・委託の金額（予定額）
A145: ※ 活動計画に記載した取り組みを外部委託する場合は記載すること。
A147: １３．計画図（協定書における協定の対象となる森林の計画図）及び現地の写真
A148: 別紙参照
A149: ※１ 対象森林の森林計画図を添付すること。森林計画図が存在しない場合又は入手が困難な場合は、対象 森林の位置及び面積が分かる縮尺5,000分の１以上の図面を添付すること。
A150: ※２ 添付する図面には、森林経営計画が策定されている区域を明示した上で、年度毎に計画している取組 の範囲を図示すること。
A151: ※３ 機能強化を行う場合は、対象となる路網や鳥獣被害防止柵の位置、延長を図示すること。
A152: ※４ 現地の写真は、取組を行う対象森林の現況（遠景、近景）がわかる写真を添付すること。

Sheet 様式第11号（活動組織）記載例
A1: 活動計画書（活動組織→地域協議会）
A2: （様式第11号）
A12: 活動計画書
A54: 令和７年４月１日策定
M55: ←2年目以降の活動組織で、活動計画書の改定を行った場合
M56: 改定日を記載してください。例)令和4年4月20日改定
A57: ○○森林保全の会
A60: 里山林活性化による多面的機能発揮対策交付金に係る活動計画書
A62: １．活動組織名
A63: ○○保全の会
A64: ※複業実践型を行う場合：（法人番号 ○○○○○○ ）
A65: ※複業実践型に取り組む場合は、法人番号も記載すること（番号がない場合は空欄で可）。
A67: ２．活動組織の事務所の所在地
A68: ○○県○○市〇〇町 ○－○
A70: ３．取組の背景
A71: ○○市○○地区は・・により、集落で先祖代々守り続けている○○の森が荒廃してきた。 このため、地域住民（○人）とNPO法人○が「○○の森保全の会」を設立し、○○の森を整備し、間伐体験や炭焼き体験を開催し、地域住民と都市住民の絆の森とし、地域の活性化を進める。 | M71: ←活動を行う地区の概要及び取り組むこととなった背景等を記入
A72: ※ 対象となる里山林がある地域の概要、本交付金の活用に至った背景、地元の自治体や自治会・町内会等地域のニーズへの対応、地域の活性化への寄与等について記載。
A74: ４．取組の概要
A75: ○○地区にあるクヌギ、コナラを中心とした広葉樹林について○○の森保全の会メンバーによる雑草木の刈払い、集積、処理場までの運搬を実施し、整備後に○○を植林、遊歩道の整備（一部急峻フィールドについては作業委託を実施。0.5ha）する。 また、一部のフィールドにおける孟宗竹の除去を実施し、チッパーによる処理後遊歩道へ敷設する。 森林資源活用タイプの活動では、フィールド内の0.5haから炭及び薪ストーブ用の原木の間伐を行い、継続的な森林整備活動の一助とするために地域内外の住民に販売する。 | M75: ←どのような取組を行うかを記入
A77: ５．構成員の概要
A78: ○○の森保全の会は、主に○○市○○地区の住民が集まった組織であり、構成員40名のうち35名が同地区の住民である。その他の構成員は○○市内他地区が4名、県外1名となっている。 本活動組織は地域の住民を核に作られた組織であるため職種は林業、自営業、事務等様々であり、所属団体については、森林関係のNPOに所属している者が10名、環境保全に関する市民団体8名などからなる。
A79: ※構成員の人数、年齢層、居住地域（どのような地域から参加しているか）、職種、経歴、所属団体等、構成員の属性について記載。
A81: ６．年度別スケジュール
A82: 区分 | D82: ○○年度 | G82: ○○年度 | J82: ○○年度
A83: １．主たる活動
B84: Ａ－１．地域活動型 | D84: 5 | F84: ha | G84: 5 | I84: ha | J84: 5 | L84: ha
B85: （森林資源活用）
C86: 資源活用の取組 | D86: ・枝条等は、作業道の排水材（粗朶）利用 ・薪製作、木工資材 | G86: ・薪製作、木工資材 ・シイタケ原木 ・チップ化発電資材 | J86: ・薪製作、木工資材 ・シイタケ原木 ・チップ化発電資材
B87: Ａ－２．地域活動型 | D87: 5 | F87: ha | G87: 5 | I87: ha | J87: 5 | L87: ha
B88: （竹林資源活用）
C89: 資源活用の取組 | D89: ・タケノコ収穫 ・竹炭製作、販売 ・チップ化農業資材 | G89: ・タケノコ収穫 ・竹炭製作、販売 ・チップ化農業資材 | J89: ・タケノコ収穫 ・竹炭製作、販売 ・チップ化農業資材 ・メンマ生産
B90: Ｂ．複業実践型 | D90: 1 | F90: ha | G90: 1 | I90: ha | J90: 1 | L90: ha
C92: 資源活用の数値目標 （搬出目標（間伐率等）） | D92: 400 | F92: 本/ha | G92: 400 | I92: 本/ha | J92: 400 | L92: 本/ha
D93: （間伐率 | E93: 10 | F93: ％） | G93: （間伐率 | H93: 20 | I93: ％） | J93: （間伐率 | K93: 30 | L93: ％）
B94: ※間伐等（除伐・枝打ちを含む。）実施面積 | D94: =D84+D87+D90 -> 11 | F94: ha | G94: =G84+G87+G90 -> 11 | I94: ha | J94: =J84+J87+J90 -> 11 | L94: ha
B95: （Ａ＋Ｂ）
A96: ２．従たる活動
B97: Ｃ．機能強化 | D97: 200 | F97: m | G97: 200 | I97: m | J97: 300 | L97: m
D98: 6 | F98: ha | G98: 6 | I98: ha | J98: 6 | L98: ha
B99: Ｄ．関係人口創出・維持 | D99: 学生等による森林整備（下草刈払い、集積等）、薪割り体験 | G99: 学生等による森林整備（集積、運搬等）、薪割り・椎茸種菌体験 | J99: 学生等による森林整備（集積、運搬等）、薪割り・椎茸種菌体験
B100: Ｅ．資機材等整備 | D100: チェンソー２台 薪割り機１台 | G100: 薪ストーブ１台
B101: Ｆ．活動推進費 | D101: 林況調査及び活動についての詳細な打合せ | G101: 林況調査及び活動についての詳細な打合せ | J101: 林況調査及び活動についての詳細な打合せ
A102: ※１ Ａ．地域活動型は、年度毎に作業を行う面積と資源活用の実施内容を記載する。
A103: ※２ Ｂ．複業実践型は、年度毎に作業を行う面積と「搬出目標（間伐率）」欄に、各年度ごとの搬出量の 目標を記載する（単位は適宜修正して差し支えない）。
A104: ※３ Ｃ．機能強化の欄に記載する値のうち、延長には、森林調査・見回りを含めない。また、面積は、 併せて行うＡ．地域活動型及びＢ．複業実践型の対象森林の面積の合計とする。
A105: ※４ Ｄ．関係人口創出・維持は、年度毎の実施内容を記載する。
A106: ※５ Ｅ．資機材等整備は、年度毎に整備する資機材を記載する。
A107: ※６ Ｆ．活動推進費は、年度毎の実施内容を記載する。
A109: ７．活動の目標と活動結果を測定するためのモニタリング調査方法
A110: 対象森林 | C110: 区分 | E110: 目標 | I110: モニタリング調査方法
A111: A | C111: 森林資源活用 | E111: 木質資源を持続的に生産し、利用する。 | I111: 森林から搬出され利用される木質資源の量を確認する。 | M111: ←タイプごとにどのような森にしたいか（目標）と調査方法を記入
A112: B | C112: 竹林資源活用 | E112: タケノコの採れる適正な竹林づくり | I112: 竹の本数調査 | M112: ←タイプごとにどのような森にしたいか（目標）と調査方法を記入
A113: C | C113: 複業実践 | E113: スギ人工林の適正管理、間伐材生産による一定の収入を得る。 | I113: 木の混み具合調査 （相対幹距比・間伐率の設定） | M113: ←タイプごとにどのような森にしたいか（目標）と調査方法を記入
A114: ※１ 目標の設定及びモニタリング調査方法の記載については、別に定めるガイドラインを参考とすること。
A115: ※２ 対象となる森林が複数あり、それぞれの森林で異なるモニタリング調査を行う場合は、それぞれ行を 分けて記載すること。
A117: ８．年度別に実施する安全講習等の名称及び内容
A118: 年度 | C118: 講習の名称 | F118: 講習の内容
A119: ○ | B119: 年度 | C119: 〇〇〇〇講習 | F119: 講師を招き、対象森林内において間伐方法や伐採木の搬出方法等の森林施業技術に関する研修を実施する。また、刈払い機、チェンソー等動力機械の使用に関しては、初めて扱う者には事前講習を実施する。 | M119: ←安全講習の名称と内容を記入
A120: ○ | B120: 年度 | C120: 〇〇〇〇講習 | F120: 講師を招き、対象森林内において間伐方法や伐採木の搬出方法等の森林施業技術に関する研修を実施する。また、刈払い機、チェンソー等動力機械の使用に関しては、初めて扱う者には事前講習を実施する。 | M120: ←安全講習の名称と内容を記入
A121: ○ | B121: 年度 | C121: 〇〇〇〇講習 | F121: 講師を招き、対象森林内において間伐方法や伐採木の搬出方法等の森林施業技術に関する研修を実施する。また、刈払い機、チェンソー等動力機械の使用に関しては、初めて扱う者には事前講習を実施する。 | M121: ←安全講習の名称と内容を記入
A123: ９．安全のために装備する物品及び傷害保険の名称
B124: 安全用具： | C124: ヘルメット、安全靴、呼子、イヤーマフ、防振手袋、防護服 | M124: ←安全作業を行うために必要な用具、物品を記入 | AH124: ←安全作業を行うために必要な用具、物品を記入
B125: 傷害保険： | C125: ○○安全損害保険（普通損害） | M125: ←加入予定の損害保険の名称、種類を記入 | AH125: ←加入予定の損害保険の名称、種類を記入
A128: １０．４年目以降の活動（森林管理）計画
A129: ４年目以降も○○の森の保全管理を継続して実施。 また、近隣の都市住民からも幅広く維持活動に協力していただける活動を継続し、地域の里山を維持・発展させる予定。 | M129: ←4年目以降の管理方法について記入
A131: １１．活動の継続のための取組
A132: 自治会等にも協力を仰ぎながら若年層の参加を促し、地域の里山を守る意識の醸成を図っていく。また、森林・竹林より搬出した木材・竹材による炭の生産販売や、将来的にはシイタケ栽培を開始し、自立した活動組織による継続した里山林保全活動を行う。
A133: ※ 本交付金の交付が終了した後にも活動を継続するために取り組んでいること（活動に参加する者や活動 に必要な経費の確保の取組等）を記載すること。
A135: １２．その他
A136: （１）収入
A137: ・年会費〇〇〇円を徴収する。 ・生産した炭の販売収入約〇〇〇円を、会の運営費に充てる。 | M137: ←会費を徴収する人数を記入(参加同意書の人数) ←会費の他に林産物で会費としての収入がある場合に記入
A138: ※ 会費、林産物収入など里山林活性化による多面的機能発揮対策交付金以外の収入を記載すること。
A139: （２）委託 | M139: ←計画段階で委託しない場合は記載不要。
A140: ・委託先の名称 ○○森林組合 | M140: ←委託を行う先の機関名 ←委託先の住所、電話番号 ←委託を行う時期 ←委託を行う内容 ←委託金額（2社以上の見積必要）
A141: ・委託先の連絡先（電話番号等） ○○○－○○○－○○○○
A142: ・委託の時期 ○○年○○月
A143: ・委託の内容（作業を委託する森林の位置（地番、林小班等）、委託する作業の内容及び面積等） 急峻な○小班の刈払い及び処理作業
A144: ・委託の金額（予定額） ２００，０００円
A145: ※ 活動計画に記載した取り組みを外部委託する場合は記載すること。
A147: １３．計画図（協定書における協定の対象となる森林の計画図）及び現地の写真
B148: （別添図面のとおり） | E148: 現地写真
A149: ※１ 対象森林の森林計画図を添付すること。森林計画図が存在しない場合又は入手が困難な場合は、 対象森林の位置及び面積が分かる縮尺5,000分の１以上の図面を添付すること。
A150: ※２ 添付する図面には、森林経営計画が策定されている区域を明示した上で、年度毎に計画している 取組の範囲を図示すること。
A151: ※３ 機能強化を行う場合は、対象となる路網や鳥獣被害防止柵の位置、延長を図示すること。
A152: ※４ 現地の写真は、取組を行う対象森林の現況（遠景、近景）がわかる写真を添付すること。

Sheet 様式第14号（クロコンチェック・組織）
A1: 環境負荷低減のクロスコンプライアンスチェックチェックシート（活動組織→地域協議会）
B2: （様式第14号）
B3: 環境負荷低減のクロスコンプライアンス チェックシート
K4: 活動組織名：
C5: 申請時 （します） | D5: （１）適正な施肥 | G5: 報告時 （しました） | J5: 申請時 （します） | K5: （５）廃棄物の発生抑制、 適正な循環的な利用及び適正な処分 | N5: 報告時 （しました） | P5: ※チェック欄を着色してあります。 | AI5: 申請時 （します） | AJ5: （１）適正な施肥 | AK5: 報告時 （しました） | AN5: 申請時 （します） | AO5: （５）廃棄物の発生抑制、 適正な循環的な利用及び適正な処分 | AP5: 報告時 （しました）
B6: ① | C6: □ | D6: ※種苗生産を行う場合 （該当しない 肥料の適正な保管 | E6: ☑ | F6: ） | G6: □ | I6: ⑧ | J6: □ | K6: 廃棄物の削減に努め、適正に処理 | N6: □ | P6: ※チェック欄はリストを設定してありますので、チェックする場合はリストから選択してください。 | AH6: ① | AJ6: ※種苗生産を行う場合（該当しない ） 肥料の適正な保管 | AM6: ⑧ | AO6: 廃棄物の削減に努め、適正に処理
B7: ② | C7: □ | D7: ※種苗生産を行う場合 （該当しない 肥料の使用状況等の記録・保存に努める | E7: ☑ | F7: ） | G7: □ | I7: ⑨ | J7: □ | K7: 未利用材の有効活用を検討 | N7: □ | AH7: ② | AJ7: ※種苗生産を行う場合（該当しない ） 肥料の使用状況等の記録・保存に努める | AM7: ⑨ | AO7: 未利用材の有効活用を検討
C9: 申請時 （します） | D9: （２）適正な防除 | G9: 報告時 （しました） | J9: 申請時 （します） | K9: （６）生物多様性への悪影響の防止 | N9: 報告時 （しました） | AI9: 申請時 （します） | AJ9: （２）適正な防除 | AK9: 報告時 （しました） | AN9: 申請時 （します） | AO9: （６）生物多様性への悪影響の防止 | AP9: 報告時 （しました）
B10: ③ | C10: □ | D10: ※農薬を使用する場合 （該当しない 農薬の適正な使用・保管 | E10: ☑ | F10: ） | G10: □ | I10: ⑩ | J10: □ | K10: 生物多様性に配慮した事業実施（物資調達、施業等）に努める | N10: □ | AH10: ③ | AJ10: ※農薬を使用する場合（該当しない ） 農薬の適正な使用・保管 | AM10: ⑩ | AO10: 生物多様性に配慮した事業実施（物資調達、施業等）に努める
B11: ④ | C11: □ | D11: ※農薬を使用する場合 （該当しない 農薬の使用状況等の記録・保存 | E11: ☑ | F11: ） | G11: □ | AH11: ④ | AJ11: ※農薬を使用する場合（該当しない ） 農薬の使用状況等の記録・保存
J12: 申請時 （します） | K12: （７）環境関係法令の遵守等 | N12: 報告時 （しました） | AN12: 申請時 （します） | AO12: （７）環境関係法令の遵守等 | AP12: 報告時 （しました）
C13: 申請時 （します） | D13: （３）エネルギーの節減 | G13: 報告時 （しました） | I13: ⑪ | J13: □ | K13: みどりの食料システム戦略の理解 | N13: □ | AI13: 申請時 （します） | AJ13: （３）エネルギーの節減 | AK13: 報告時 （しました） | AM13: ⑪ | AO13: みどりの食料システム戦略の理解
B14: ⑤ | C14: □ | D14: ※林業機械や施設の電気・燃料の使用状況の記録・ 保存に努める （該当しない | E14: □ | F14: ） | G14: □ | I14: ⑫ | J14: □ | K14: 関係法令の遵守 | N14: □ | AH14: ⑤ | AJ14: 林業機械や施設の電気・燃料の使用状況の記録・保存に努める | AM14: ⑫ | AO14: 関係法令の遵守
B15: ⑥ | C15: □ | D15: ※省エネを意識し、不必要・非効率なエネルギー 消費をしないように努める （該当しない | E15: □ | F15: ） | G15: □ | I15: ⑬ | J15: □ | K15: 林業機械等の装置・車両の適切な整備と管理の実施に努める | N15: □ | AH15: ⑥ | AJ15: 省エネを意識し、不必要・非効率なエネルギー消費をしないように努める | AM15: ⑬ | AO15: 林業機械等の装置・車両の適切な整備と管理の実施に努める
I16: ⑭ | J16: □ | K16: 正しい知識に基づく作業安全に努める | N16: □ | AM16: ⑭ | AO16: 正しい知識に基づく作業安全に努める
C17: 申請時 （します） | D17: （４）悪臭及び害虫の発生防止 | G17: 報告時 （しました） | AI17: 申請時 （します） | AJ17: （４）悪臭及び害虫の発生防止 | AK17: 報告時 （しました）
B18: ⑦ | C18: □ | D18: ※悪臭・害虫の発生防止・低減に努める （該当しない | E18: □ | F18: ） | G18: □ | AH18: ⑦ | AJ18: 悪臭・害虫の発生防止・低減に努める
B20: （注１）※の記載内容に「該当しない」場合には□にチェックしてください。この場合、当該項目の申請時・報告時のチェックは不要です。
B21: （注２）申請を行う際は「申請時」欄に☑を付し、報告の際は「報告時」欄に☑を付して提出してください。
B22: ※チェックシートの提出者から抽出により農林水産省職員による現地確認が行われる場合があります。
B23: ※⑫に示す関係法令は以下のとおりです。
